bitfinex/quotes_SOLUSD_20260208
["timestamp","ask_amount","ask_price","bid_price","bid_amount"]
[1770519384532,4.04714664,87.23,87.205,3.68317448]
[1770519384708,3.63461016,87.229,87.205,3.68317448]
[1770519384909,4.04714664,87.23,87.205,3.68317448]
[1770519385134,7.23787969,87.239,87.207,3.68317448]
[1770519386635,7.23787969,87.239,87.209,3.68317448]
[1770519386940,3.63461016,87.238,87.209,3.68317448]
[1770519387435,3.63461016,87.229,87.208,11.4668379]
[1770519388134,3.63461016,87.219,87.196,15.15155296]
[1770519388324,3.63461016,87.219,87.197,3.68317448]
[1770519388527,10.83637797,87.21,87.184,3.68317448]
[1770519388829,3.63461016,87.209,87.184,3.68317448]
[1770519389134,3.63461016,87.209,87.186,3.68317448]
[1770519391437,3.63461016,87.209,87.188,3.68317448]
[1770519391620,3.63461016,87.219,87.188,3.68317448]
[1770519391938,3.63461016,87.218,87.188,3.68317448]
[1770519397547,3.63461016,87.218,87.19,3.79737439]
[1770519399643,7.23787969,87.239,87.149,57.37296001]
[1770519399644,3.79030177,87.209,87.184,3.79737439]
[1770519399847,3.79030177,87.209,87.186,11.46966605]
[1770519400149,3.79030177,87.227,87.191,3.79737439]
[1770519400824,3.79030177,87.219,87.191,3.79737439]
[1770519404441,3.79030177,87.219,87.193,3.79737439]
[1770519406156,3.79030177,87.217,87.193,3.79737439]
[1770519420769,3.79030177,87.215,87.182,3.79737439]
[1770519420944,3.79030177,87.209,87.182,3.79737439]
[1770519421254,3.79030177,87.209,87.184,3.79737439]
[1770519422442,4.04725195,87.21,87.184,3.79737439]
[1770519422643,3.79030177,87.217,87.184,3.79737439]
[1770519422843,3.79030177,87.216,87.187,3.79737439]
[1770519423756,3.79030177,87.222,87.187,3.79737439]
[1770519424768,3.79030177,87.229,87.189,3.79737439]
[1770519425064,3.79030177,87.235,87.191,3.79737439]
[1770519425266,3.79030177,87.235,87.201,3.79737439]
[1770519425468,7.23787969,87.239,87.201,3.79737439]
[1770519426149,11.03623706,87.239,87.201,3.79737439]
[1770519427768,4.04725195,87.23,87.203,3.84627925]
[1770519428366,3.79835737,87.231,87.203,3.84627925]
[1770519429285,3.79835737,87.231,87.205,3.84627925]
[1770519429780,3.79835737,87.254,87.207,3.84627925]
[1770519430068,63.72782,87.325,87.221,3.84627925]
[1770519430069,3.79835737,87.259,87.221,3.84627925]
[1770519430749,3.79835737,87.249,87.205,3.84627925]
[1770519431468,3.79835737,87.247,87.207,3.84627925]
[1770519431856,3.79835737,87.239,87.207,3.84627925]
[1770519433575,3.79835737,87.239,87.209,3.67149388]
[1770519434771,11.46183142,87.247,87.211,3.67149388]
[1770519434978,3.66452115,87.246,87.211,3.67149388]
[1770519435874,3.66452115,87.246,87.212,11.46631197]
[1770519436176,3.66452115,87.246,87.213,3.67149388]
[1770519439278,3.66452115,87.246,87.215,3.67149388]
[1770519440378,3.66452115,87.246,87.217,3.67149388]
[1770519440786,3.66452115,87.251,87.217,3.67149388]
[1770519440991,4.04423206,87.25,87.217,3.67149388]
[1770519441186,3.66452115,87.249,87.217,3.67149388]
[1770519442186,3.66452115,87.239,87.216,11.46578609]
[1770519443768,4.04423206,87.23,87.171,3.67149388]
[1770519443975,4.04423206,87.23,87.163,3.67149388]
[1770519443976,4.04423206,87.18,87.163,3.67149388]
[1770519445284,3.66452115,87.189,87.163,3.67149388]
[1770519448589,4.04423206,87.2,87.165,3.67149388]
[1770519448795,3.66452115,87.199,87.165,3.67149388]
[1770519449818,3.66452115,87.199,87.167,3.67149388]
[1770519453204,3.66452115,87.199,87.168,11.47209985]
[1770519453396,3.66452115,87.199,87.169,3.67149388]
[1770519455905,3.66452115,87.199,87.17,11.47183664]
[1770519456587,3.66452115,87.199,87.17,15.02369669]
[1770519456786,3.66452115,87.199,87.171,3.55186005]
[1770519457008,3.66452115,87.199,87.132,57.38361471]
[1770519457009,3.79972822,87.197,87.159,3.55186005]
[1770519457307,3.79972822,87.189,87.159,3.55186005]
[1770519458509,3.79972822,87.189,87.161,3.55186005]
[1770519458681,3.79972822,87.206,87.171,3.55186005]
[1770519459087,3.79972822,87.206,87.173,3.55186005]
[1770519463814,3.79972822,87.206,87.174,11.47131025]
[1770519464004,3.79972822,87.206,87.175,3.55186005]
[1770519465005,3.79972822,87.206,87.177,3.55186005]
[1770519467601,3.79972822,87.206,87.178,11.47078391]
[1770519467801,3.79972822,87.206,87.179,3.55186005]
[1770519468618,3.79972822,87.204,87.172,15.02340388]
[1770519468800,3.79972822,87.204,87.173,3.55186005]
[1770519469625,3.79972822,87.204,87.177,3.55186005]
[1770519470914,3.79972822,87.204,87.178,11.47078391]
[1770519471217,3.79972822,87.204,87.177,3.55186005]
[1770519472120,3.79972822,87.204,87.178,3.55186005]
[1770519473327,3.79972822,87.204,87.179,11.47065233]
[1770519473626,3.79972822,87.228,87.191,3.55186005]
[1770519474230,3.79972822,87.227,87.191,3.55186005]
[1770519474933,3.79972822,87.209,87.173,11.47139205]
[1770519475225,3.79972822,87.207,87.173,11.47139205]
[1770519475607,3.79972822,87.199,87.173,11.47139205]
[1770519476201,3.79972822,87.216,87.174,3.55186005]
[1770519477224,3.79972822,87.216,87.176,3.55186005]
[1770519479812,3.79972822,87.216,87.178,3.55186005]
[1770519481536,3.79972822,87.214,87.178,3.55186005]
[1770519483533,3.79972822,87.214,87.18,3.55186005]
[1770519487532,3.79972822,87.214,87.182,3.82912809]
[1770519490132,3.79972822,87.214,87.183,11.47012605]
[1770519490435,3.79972822,87.214,87.184,3.82912809]
[1770519491429,3.79972822,87.214,87.186,3.82912809]
[1770519492438,3.79972822,87.214,87.187,11.46959982]
[1770519492641,3.79972822,87.214,87.188,3.76203374]
[1770519494412,3.79972822,87.214,87.189,11.46933672]
[1770519494613,3.79972822,87.214,87.189,15.23137046]
[1770519496331,3.6810627,87.209,87.182,15.23223402]
[1770519496640,3.6810627,87.209,87.183,3.76203374]
[1770519497018,3.6810627,87.221,87.185,3.76203374]
[1770519497213,45.7999954,87.337,87.201,3.76203374]
[1770519497214,11.46157356,87.249,87.201,3.76203374]
[1770519497413,11.46157356,87.249,87.211,3.76203374]
[1770519497735,4.04677135,87.25,87.211,3.76203374]
[1770519498613,11.46026725,87.258,87.211,3.76203374]
[1770519498817,0.2,87.26,87.221,3.76203374]
[1770519499119,11.46013591,87.259,87.222,3.76203374]
[1770519499319,3.6810627,87.258,87.222,3.76203374]
[1770519499840,3.6810627,87.239,87.216,3.76203374]
[1770519500727,3.6810627,87.239,87.217,3.76203374]
[1770519507139,3.6810627,87.239,87.219,3.76203374]
[1770519507532,3.6810627,87.239,87.213,3.76203374]
[1770519507732,3.6810627,87.239,87.212,3.76203374]
[1770519508727,3.6810627,87.239,87.216,3.76203374]
[1770519509736,0.2,87.26,87.221,3.76203374]
[1770519510337,0.2,87.26,87.23,4.04677135]
[1770519510540,0.2,87.26,87.231,3.76203374]
[1770519511445,0.2,87.26,87.233,3.76203374]
[1770519512543,0.2,87.26,87.235,3.76203374]
[1770519514919,0.2,87.26,87.236,11.46315741]
[1770519515120,0.2,87.26,87.241,3.76203374]
[1770519519250,0.2,87.26,87.243,3.54432514]
[1770519520541,3.74663842,87.289,87.245,3.54432514]
[1770519520927,3.74663842,87.279,87.245,3.54432514]
[1770519522351,3.74663842,87.277,87.245,3.54432514]
[1770519522554,3.74663842,87.269,87.238,11.46279902]
[1770519522735,3.74663842,87.269,87.242,11.46230243]
[1770519523336,3.74663842,87.269,87.242,15.00662757]
[1770519523544,3.74663842,87.269,87.243,3.54432514]
[1770519524558,5.13032502,87.299,87.25,4.04677135]
[1770519524559,3.93078468,87.286,87.25,4.04677135]
[1770519525559,3.93078468,87.286,87.251,11.46118669]
[1770519529369,3.93078468,87.284,87.251,11.46118669]
[1770519529563,3.93078468,87.284,87.243,11.46220804]
[1770519531067,3.93078468,87.282,87.243,11.46220804]
[1770519532463,11.45724728,87.281,87.231,11.46381446]
[1770519532660,3.93078468,87.28,87.231,11.46381446]
[1770519533154,3.93078468,87.288,87.25,4.04677135]
[1770519533751,4.04677135,87.3,87.25,4.04677135]
[1770519533971,3.93078468,87.291,87.25,4.04677135]
[1770519536772,3.93078468,87.291,87.251,11.46118669]
[1770519537479,3.93078468,87.291,87.251,40.11415341]
[1770519539173,3.93078468,87.289,87.251,11.46118669]
[1770519542680,11.45632847,87.288,87.241,11.46250042]
[1770519542887,3.93078468,87.287,87.25,4.04677135]
[1770519543068,28.63304933,87.312,87.26,4.04677135]
[1770519543069,3.93078468,87.291,87.26,4.04677135]
[1770519545383,3.93078468,87.291,87.261,11.45987325]
[1770519545574,3.93078468,87.297,87.27,4.04677135]
[1770519546884,1e-08,87.292,87.27,4.04677135]
[1770519549689,3.93078469,87.292,87.271,11.45856011]
[1770519550686,3.93078469,87.292,87.261,40.10955638]
[1770519554785,0.2,87.32,87.281,3.53844507]
[1770519554998,0.2,87.32,87.291,3.53844507]
[1770519555777,0.2,87.32,87.3,4.03896461]
[1770519555992,0.2,87.32,87.295,3.53844507]
[1770519556196,0.2,87.32,87.261,97.40892264]
[1770519556197,0.2,87.32,87.262,3.53844507]
[1770519556377,0.2,87.32,87.291,3.53844507]
[1770519556878,3.83257923,87.319,87.292,14.99424858]
[1770519557185,3.83257923,87.319,87.293,3.53844507]
[1770519558699,1e-08,87.32,87.3,7.57740968]
[1770519558997,1e-08,87.32,87.301,11.45462251]
[1770519560683,3.83257923,87.319,87.301,11.45462251]
[1770519562484,3.83257923,87.319,87.295,3.53844507]
[1770519562485,3.83257923,87.309,87.294,11.45543592]
[1770519562691,3.83257923,87.309,87.295,3.53844507]
[1770519562896,1e-08,87.32,87.295,3.53844507]
[1770519563488,1e-08,87.32,87.297,3.53844507]
[1770519566007,1e-08,87.32,87.298,11.45501615]
[1770519566305,1e-08,87.32,87.301,3.53844507]
[1770519567409,1e-08,87.32,87.303,3.53844507]
[1770519568484,1e-08,87.32,87.305,3.53844507]
[1770519570002,1e-08,87.32,87.307,3.53844507]
[1770519573116,1e-08,87.32,87.308,14.99214919]
[1770519576209,1e-08,87.32,87.309,3.65290915]
[1770519578201,1e-08,87.32,87.31,11.45344175]
[1770519579810,1e-08,87.32,87.301,11.45462251]
[1770519580015,1e-08,87.32,87.301,15.10753166]
[1770519580200,1e-08,87.32,87.302,3.65290915]
[1770519580816,1e-08,87.32,87.303,11.4543601]
[1770519581116,1e-08,87.32,87.303,15.10726925]
[1770519583314,1e-08,87.32,87.304,3.65290915]
[1770519583495,1e-08,87.32,87.304,2.15037285]
[1770519584195,3.61265446,87.319,87.291,11.45593474]
[1770519585504,3.61265446,87.319,87.281,11.45724728]
[1770519585715,3.61265446,87.319,87.282,3.65290915]
[1770519586616,3.61265446,87.319,87.291,3.65290915]
[1770519587713,1e-08,87.32,87.293,3.65290915]
[1770519588102,1e-08,87.32,87.301,3.65290915]
[1770519588302,1e-08,87.32,87.3,4.03896461]
[1770519588303,1e-08,87.33,87.312,3.65290915]
[1770519588508,0.2,87.36,87.321,3.65290915]
[1770519588708,4.23896461,87.36,87.321,3.65290915]
[1770519588899,0.2,87.36,87.321,3.65290915]
[1770519589797,4.23896461,87.36,87.323,3.65290915]
[1770519589998,11.44739471,87.357,87.323,3.65290915]
[1770519590218,4.23896461,87.35,87.323,3.65290915]
[1770519590397,3.61265446,87.349,87.323,3.65290915]
[1770519590597,3.61265446,87.348,87.316,3.65290915]
[1770519590818,3.61265446,87.348,87.323,3.65290915]
[1770519591011,3.81265446,87.35,87.323,3.65290915]
[1770519591397,3.81265446,87.35,87.322,11.45186779]
[1770519591398,3.61265446,87.38,87.341,3.65290915]
[1770519591608,163.0,87.434,87.341,3.65290915]
[1770519591609,3.61265446,87.369,87.341,3.65290915]
[1770519592015,3.61265446,87.369,87.335,3.65290915]
[1770519592222,3.61265446,87.369,87.336,11.44991155]
[1770519592914,3.61265446,87.369,87.341,11.44928895]
[1770519594125,3.61265446,87.369,87.342,3.65290915]
[1770519594927,3.61265446,87.369,87.323,3.65290915]
[1770519595831,3.61265446,87.359,87.323,3.65290915]
[1770519596015,3.61265446,87.359,87.325,3.65290915]
[1770519596722,3.61265446,87.357,87.325,3.65290915]
[1770519597716,3.61265446,87.369,87.331,3.65290915]
[1770519598528,3.61265446,87.369,87.333,3.65290915]
[1770519601330,3.61265446,87.369,87.335,3.65290915]
[1770519601623,3.61265446,87.369,87.341,3.65290915]
[1770519602529,3.61265446,87.369,87.343,3.65290915]
[1770519605016,3.61265446,87.369,87.344,15.10189248]
[1770519605218,3.61265446,87.369,87.344,11.44898333]
[1770519605418,3.61265446,87.369,87.345,3.65290915]
[1770519606739,3.67494901,87.376,87.351,3.83840102]
[1770519606915,7.29197596,87.381,87.351,3.83840102]
[1770519609613,3.67494901,87.38,87.353,3.83840102]
[1770519610216,3.67494901,87.38,87.36,4.03896461]
[1770519610535,4.03896461,87.42,87.371,3.83840102]
[1770519610830,11.43952501,87.417,87.371,3.83840102]
[1770519611021,3.67494901,87.409,87.371,3.83840102]
[1770519611223,3.67494901,87.415,87.381,3.83840102]
[1770519611538,3.87494901,87.41,87.381,3.83840102]
[1770519611835,3.87494901,87.41,87.383,3.83840102]
[1770519612034,3.87494901,87.41,87.382,11.44400448]
[1770519612035,3.67494901,87.421,87.401,3.83840102]
[1770519612425,3.67494901,87.439,87.401,3.83840102]
[1770519612731,3.67494901,87.438,87.401,3.83840102]
[1770519612935,3.67494901,87.438,87.396,3.83840102]
[1770519613156,3.67494901,87.429,87.396,3.83840102]
[1770519613434,3.67494901,87.429,87.382,40.05401569]
[1770519613435,3.67494901,87.429,87.39,3.74835394]
[1770519613735,3.67494901,87.429,87.393,3.74835394]
[1770519614743,3.67494901,87.429,87.392,11.44269498]
[1770519614744,3.93449113,87.44,87.411,3.74835394]
[1770519615541,3.93449113,87.44,87.421,3.74835394]
[1770519615542,0.2,87.44,87.421,3.74835394]
[1770519615738,0.2,87.44,87.423,3.74835394]
[1770519615942,0.2,87.44,87.422,11.43876827]
[1770519615943,3.73449113,87.453,87.431,3.74835394]
[1770519616143,3.73449113,87.46,87.431,3.74835394]
[1770519616838,3.73449113,87.469,87.431,3.74835394]
[1770519617039,0.2,87.47,87.451,3.74835394]
[1770519618042,0.2,87.47,87.453,3.74835394]
[1770519618737,3.73449113,87.478,87.453,3.74835394]
[1770519619037,0.2,87.49,87.462,3.74835394]
[1770519619222,0.2,87.5,87.472,3.74835394]
[1770519619415,3.73449113,87.499,87.461,3.74835394]
[1770519619830,3.73449113,87.497,87.461,3.74835394]
[1770519620525,3.73449113,87.497,87.463,3.74835394]
[1770519621245,0.2,87.5,87.481,3.74835394]
[1770519622048,0.2,87.5,87.483,3.74835394]
[1770519622350,0.2,87.52,87.482,11.43092293]
[1770519622351,3.73449113,87.539,87.492,3.74835394]
[1770519622518,3.73449113,87.539,87.482,40.00823026]
[1770519622519,3.73449113,87.546,87.511,3.74835394]
[1770519623237,0.2,87.56,87.531,3.74835394]
[1770519623536,0.2,87.56,87.541,3.74835394]
[1770519624124,0.2,87.56,87.543,3.74835394]
[1770519624849,3.93449113,87.56,87.529,3.74835394]
[1770519625346,3.73449113,87.559,87.529,3.74835394]
[1770519625646,3.73449113,87.558,87.521,3.74835394]
[1770519625840,3.73449113,87.549,87.521,3.74835394]
[1770519626224,3.73449113,87.539,87.512,3.74835394]
[1770519626722,3.73449113,87.529,87.497,11.42888659]
[1770519626923,3.73449113,87.519,87.496,3.74835394]
[1770519627137,3.73449113,87.519,87.471,3.74835394]
[1770519627422,3.73449113,87.519,87.484,3.74835394]
[1770519628240,3.73449113,87.519,87.485,11.43053094]
[1770519628540,5.13032502,87.546,87.468,28.58178987]
[1770519628541,10.76654147,87.51,87.486,3.74835394]
[1770519628923,3.73449113,87.517,87.486,3.74835394]
[1770519629742,3.73449113,87.525,87.486,3.74835394]
[1770519629940,3.73449113,87.539,87.501,3.74835394]
[1770519631331,3.73449113,87.539,87.503,3.74835394]
[1770519633549,3.73449113,87.539,87.505,3.74835394]
[1770519634537,3.73449113,87.537,87.505,3.74835394]
[1770519634742,3.73449113,87.529,87.499,3.74835394]
[1770519634933,15.15810144,87.538,87.499,3.74835394]
[1770519635139,3.73449113,87.537,87.499,3.74835394]
[1770519635744,3.73449113,87.537,87.461,5.13032502]
[1770519635745,3.84415654,87.519,87.491,3.77564912]
[1770519635944,3.84415654,87.519,87.491,3.56615989]
[1770519636950,3.84415654,87.519,87.492,11.42961642]
[1770519637131,3.84415654,87.527,87.492,11.42961642]
[1770519637657,3.84415654,87.535,87.5,10.76654147]
[1770519637946,3.84415654,87.535,87.501,3.77564912]
[1770519639252,3.84415654,87.535,87.511,3.77564912]
[1770519639635,3.84415654,87.549,87.511,3.77564912]
[1770519641254,3.84415654,87.549,87.521,3.77564912]
[1770519641455,3.84415654,87.559,87.524,3.77564912]
[1770519642052,3.84415654,87.549,87.524,3.77564912]
[1770519642247,3.84415654,87.549,87.517,3.77564912]
[1770519642747,3.84415654,87.539,87.507,3.77564912]
[1770519643445,3.84415654,87.539,87.508,15.20317574]
[1770519643641,3.84415654,87.539,87.508,11.42752662]
[1770519643854,3.84415654,87.539,87.509,3.77564912]
[1770519648355,3.84415654,87.538,87.509,3.77564912]
[1770519649757,3.84415654,87.519,87.496,11.42908885]
[1770519650346,3.84415654,87.519,87.492,3.77564912]
[1770519650551,3.84415654,87.526,87.492,3.77564912]
[1770519652767,3.84415654,87.526,87.494,3.77564912]
[1770519653173,10.76654147,87.52,87.494,3.77564912]
[1770519655254,10.76654147,87.53,87.496,3.77564912]
[1770519655467,4.01819896,87.53,87.496,3.77564912]
[1770519656958,4.01819896,87.52,87.496,3.77564912]
[1770519657267,4.01819896,87.51,87.488,3.77564912]
[1770519657467,4.01819896,87.51,87.497,11.42896327]
[1770519659381,3.84415654,87.518,87.497,11.42896327]
[1770519659558,4.01819896,87.51,87.489,15.20565621]
[1770519659754,4.01819896,87.51,87.49,3.77564912]
[1770519660160,3.84415654,87.499,87.474,3.77564912]
[1770519660462,3.84415654,87.494,87.474,3.77564912]
[1770519661060,3.84415654,87.489,87.465,3.77564912]
[1770519661265,4.01819896,87.48,87.458,3.77564912]
[1770519661467,3.84415654,87.483,87.46,3.77564912]
[1770519661672,3.84415654,87.49,87.46,3.77564912]
[1770519662775,3.84415654,87.489,87.459,15.20957816]
[1770519662979,3.84415654,87.489,87.46,3.77564912]
[1770519663866,3.84415654,87.489,87.461,15.20931669]
[1770519664075,3.84415654,87.489,87.462,3.77564912]
[1770519665694,3.84415654,87.489,87.464,3.72671132]
[1770519668772,3.84415654,87.489,87.465,11.43314468]
[1770519672976,3.84415654,87.489,87.465,3.66613896]
[1770519675574,3.84415654,87.489,87.466,11.43301397]
[1770519677489,3.84415654,87.489,87.466,3.66613896]
[1770519680599,3.84415654,87.489,87.467,11.43288325]
[1770519681078,3.84415654,87.489,87.468,3.66613896]
[1770519684992,28.56628319,87.516,87.47,3.66613896]
[1770519684993,3.52964205,87.499,87.47,3.66613896]
[1770519687286,3.52964205,87.499,87.472,3.66613896]
[1770519687500,11.42840491,87.502,87.472,3.66613896]
[1770519687893,3.52964205,87.539,87.491,3.66613896]
[1770519688096,3.52964205,87.529,87.491,3.66613896]
[1770519689094,3.52964205,87.519,87.486,3.66613896]
[1770519689585,3.3924647,87.519,87.486,3.66613896]
[1770519689785,15.44832807,87.51,87.486,3.66613896]
[1770519691605,3.52964205,87.509,87.486,3.66613896]
[1770519694111,3.52964205,87.507,87.464,3.66613896]
[1770519694317,3.52964205,87.489,87.464,3.66613896]
[1770519695599,3.68146172,87.479,87.443,3.80911674]
[1770519695897,3.68146172,87.469,87.421,3.80911674]
[1770519696212,3.68146172,87.467,87.425,3.80911674]
[1770519697107,11.43275254,87.468,87.425,3.80911674]
[1770519697108,3.68146172,87.459,87.425,3.80911674]
[1770519697416,3.68146172,87.449,87.401,3.80911674]
[1770519697910,40.01463391,87.468,87.4,4.22104695]
[1770519697911,3.68146172,87.439,87.405,3.80911674]
[1770519698216,3.68146172,87.437,87.405,3.80911674]
[1770519698392,3.68146172,87.437,87.4,0.2]
[1770519698393,3.68146172,87.459,87.411,3.80911674]
[1770519698597,3.68146172,87.47,87.431,3.80911674]
[1770519699008,3.68146172,87.469,87.431,3.80911674]
[1770519699211,3.68146172,87.459,87.431,3.80911674]
[1770519700413,3.68146172,87.466,87.433,3.80911674]
[1770519700600,3.68146172,87.479,87.441,3.80911674]
[1770519702619,3.68146172,87.469,87.441,3.80911674]
[1770519704524,3.68146172,87.459,87.435,3.80911674]
[1770519706820,3.68146172,87.459,87.41,4.02104695]
[1770519706821,3.68146172,87.459,87.424,3.80911674]
[1770519707000,3.68146172,87.449,87.412,3.80911674]
[1770519707200,3.68146172,87.439,87.412,3.80911674]
[1770519709796,3.68146172,87.439,87.406,11.44085984]
[1770519709797,3.68146172,87.419,87.4,0.2]
[1770519710301,3.68146172,87.437,87.404,3.80911674]
[1770519710520,3.68146172,87.435,87.404,3.80911674]
[1770519710823,3.68146172,87.429,87.404,3.80911674]
[1770519711507,3.68146172,87.429,87.4,0.2]
[1770519711805,3.68146172,87.419,87.4,0.2]
[1770519712412,4.02104695,87.44,87.4,0.2]
[1770519712413,3.68146172,87.429,87.402,3.80911674]
[1770519715323,3.68146172,87.448,87.404,3.80911674]
[1770519715500,3.68146172,87.448,87.411,3.80911674]
[1770519716430,3.68146172,87.448,87.413,3.80911674]
[1770519716614,3.68146172,87.439,87.413,3.80911674]
[1770519717123,3.68146172,87.446,87.413,3.80911674]
[1770519718305,3.68146172,87.446,87.421,3.80911674]
[1770519718800,3.68146172,87.446,87.423,3.80911674]
[1770519721713,5.13032502,87.469,87.4,0.2]
[1770519721714,3.68146172,87.439,87.401,3.80911674]
[1770519722030,3.68146172,87.439,87.411,3.80911674]
[1770519724113,3.68146172,87.437,87.411,3.80911674]
[1770519724722,3.68146172,87.429,87.401,3.80911674]
[1770519726138,3.68146172,87.429,87.402,11.44138578]
[1770519726315,3.68146172,87.429,87.403,3.47972519]
[1770519727317,3.68146172,87.429,87.402,11.44138578]
[1770519727318,3.68146172,87.429,87.4,0.2]
[1770519727520,3.75922932,87.428,87.4,0.2]
[1770519727719,3.75922932,87.419,87.4,0.2]
[1770519729942,3.75922932,87.417,87.4,0.2]
[1770519730137,11.43929167,87.418,87.4,0.2]
[1770519730138,3.75922932,87.409,87.4,0.2]
[1770519730845,3.75922932,87.409,87.387,3.47972519]
[1770519734719,3.8106663,87.423,87.391,3.68079975]
[1770519735047,3.8106663,87.434,87.401,3.68079975]
[1770519735619,11.43559612,87.447,87.401,3.68079975]
[1770519735824,3.8106663,87.446,87.401,3.68079975]
[1770519736647,3.8106663,87.446,87.413,3.68079975]
[1770519738333,3.8106663,87.446,87.415,3.68079975]
[1770519739644,3.8106663,87.446,87.417,3.68079975]
[1770519740135,3.8106663,87.446,87.412,3.68079975]
[1770519740337,3.8106663,87.446,87.417,3.68079975]
[1770519741549,3.8106663,87.455,87.417,3.68079975]
[1770519741756,3.8106663,87.455,87.421,3.68079975]
[1770519742645,28.57769078,87.481,87.418,40.03752086]
[1770519742646,3.8106663,87.467,87.431,3.68079975]
[1770519744747,3.8106663,87.467,87.433,3.68079975]
[1770519745435,3.8106663,87.459,87.433,3.68079975]
[1770519747351,3.8106663,87.466,87.435,3.68079975]
[1770519748270,11.43287781,87.468,87.435,3.68079975]
[1770519748453,11.0312057,87.463,87.435,3.68079975]
[1770519748949,3.8106663,87.462,87.435,3.68079975]
[1770519750036,3.8106663,87.459,87.435,3.68079975]
[1770519750656,10.77666343,87.45,87.427,3.68079975]
[1770519750859,3.8106663,87.449,87.421,3.68079975]
[1770519751852,3.8106663,87.439,87.414,3.68079975]
[1770519755041,3.8106663,87.437,87.402,15.12205645]
[1770519755245,3.8106663,87.429,87.403,3.68079975]
[1770519756854,3.8106663,87.429,87.405,3.4520553]
[1770519759043,3.48960954,87.428,87.399,3.4520553]
[1770519759449,3.48960954,87.428,87.403,3.4520553]
[1770519761265,3.48960954,87.428,87.393,3.4520553]
[1770519762268,3.48960954,87.419,87.393,3.4520553]
[1770519763667,10.77666343,87.43,87.381,28.61032544]
[1770519763668,3.48960954,87.429,87.395,3.4520553]
[1770519764250,3.48960954,87.428,87.395,3.4520553]
[1770519764472,3.48960954,87.428,87.395,2.9520553]
[1770519765559,3.48960954,87.428,87.394,11.44243311]
[1770519765560,3.48960954,87.428,87.396,11.44217126]
[1770519766455,3.48960954,87.428,87.397,3.4520553]
[1770519767772,3.48960954,87.426,87.397,3.4520553]
[1770519767971,3.48960954,87.419,87.397,3.4520553]
[1770519768776,3.48960954,87.419,87.399,3.4520553]
[1770519768958,3.48960954,87.429,87.399,3.4520553]
[1770519770258,3.48960954,87.428,87.399,3.4520553]
[1770519770782,3.48960954,87.434,87.401,3.4520553]
[1770519772273,3.48960954,87.434,87.403,3.4520553]
[1770519773474,3.48960954,87.434,87.405,3.4520553]
[1770519776364,3.48960954,87.434,87.407,3.4520553]
[1770519777482,3.48960954,87.434,87.408,11.4406004]
[1770519777668,3.48960954,87.434,87.409,3.4520553]
[1770519780970,3.48960954,87.419,87.391,3.4520553]
[1770519781671,3.48960954,87.419,87.394,11.44235041]
[1770519781887,3.48960954,87.419,87.394,14.89440571]
[1770519782062,3.48960954,87.419,87.395,3.4520553]
[1770519784181,3.48960954,87.429,87.397,3.4520553]
[1770519785068,3.48960954,87.428,87.397,3.4520553]
[1770519786676,3.48960954,87.428,87.399,3.68754584]
[1770519787468,3.72229365,87.435,87.401,3.68754584]
[1770519788683,3.72229365,87.429,87.384,28.60918571]
[1770519788890,3.72229365,87.429,87.385,3.68754584]
[1770519789785,3.72229365,87.429,87.387,3.68754584]
[1770519789983,3.72229365,87.429,87.391,3.68754584]
[1770519790376,3.72229365,87.435,87.391,3.68754584]
[1770519792790,3.72229365,87.435,87.393,3.67300453]
[1770519793189,11.43719834,87.434,87.393,3.67300453]
[1770519793386,3.6033742,87.433,87.393,3.67300453]
[1770519793692,3.6033742,87.429,87.393,3.67300453]
[1770519795996,3.6033742,87.429,87.395,3.67300453]
[1770519796778,3.6033742,87.429,87.401,3.67300453]
[1770519799982,3.6033742,87.445,87.403,3.67300453]
[1770519800991,3.6033742,87.445,87.411,3.67300453]
[1770519801803,5.13032502,87.468,87.402,40.04485023]
[1770519801804,3.6033742,87.465,87.431,3.67300453]
[1770519801984,3.6033742,87.465,87.433,3.67300453]
[1770519803004,3.6033742,87.456,87.433,3.67300453]
[1770519806106,3.6033742,87.456,87.434,11.43719834]
[1770519806307,3.6033742,87.456,87.435,3.67300453]
[1770519806608,3.6033742,87.47,87.435,3.67300453]
[1770519807595,3.6033742,87.461,87.435,3.67300453]
[1770519807907,3.6033742,87.456,87.435,3.67300453]
[1770519808388,3.6033742,87.456,87.434,11.43719834]
[1770519808585,3.6033742,87.456,87.43,3.67300453]
[1770519811409,3.6033742,87.456,87.431,11.43759078]
[1770519811610,3.6033742,87.456,87.432,3.67300453]
[1770519813707,4.02607594,87.47,87.434,3.67300453]
[1770519813913,3.6033742,87.462,87.434,3.67300453]
[1770519814116,3.6033742,87.456,87.425,11.43825231]
[1770519814314,3.6033742,87.449,87.425,11.43825231]
[1770519814495,3.6033742,87.449,87.424,3.67300453]
[1770519816319,3.6033742,87.449,87.425,3.54209545]
[1770519817319,3.6033742,87.449,87.426,3.54209545]
[1770519818216,3.68329861,87.447,87.411,11.44020775]
[1770519818403,3.68329861,87.429,87.4,3.54209545]
[1770519819296,3.68329861,87.429,87.402,3.54209545]
[1770519820924,3.68329861,87.447,87.403,3.54209545]